[Event "CZE-ch Youth G10-G12-G14 2022"]
[Site "Luhacovice"]
[Date "2022.03.16"]
[Round "6.16"]
[White "Barteckova, Nikol"]
[Black "Hladka, Leontyna"]
[Result "1/2-1/2"]
[ECO "C29"]
[WhiteElo "1140"]
[BlackElo "1134"]
[Annotator "NA"]
[PlyCount "152"]
[EventDate "2022.03.12"]
[EventType "swiss"]
[EventCountry "CZE"]
[SourceTitle "playchess.com"]
[Source "ChessBase"]
[SourceQuality "1"]
[TimeControl "40/5400+30:1800+30"]

1. e4 {[%emt 0:00:03]} e5 {[%emt 0:00:05]} 2. Nc3 {[%emt 0:00:14]} Nf6 {[%emt 0:00:22]} 3. f4 {[%emt 0:00:58]} d5 {[%emt 0:00:10]} 4. fxe5 {[%emt 0:00:34]} Nxe4 {[%emt 0:00:22]} 5. Nf3 {[%emt 0:00:41]} Bc5 {[%emt 0:00:38]} 6. d4 {[%emt 0:15:52]} Bb4 {[%emt 0:00:11]} 7. Bd2 {[%emt 0:01:02]} c5 {[%emt 0:16:21]} 8. Qe2 {[%emt 0:16:33]} Nxc3 {[%emt 0:01:58]} 9. bxc3 {[%emt 0:00:58]} Ba3 {[%emt 0:02:12]} 10. Rb1 {[%emt 0:00:54]} c4 {[%emt 0:00:32]} 11. Qf2 {[%emt 0:01:09]} Be7 {[%emt 0:03:50]} 12. Be2 {[%emt 0:02:30]} b6 {[%emt 0:01:16]} 13. a4 {[%emt 0:01:26]} Bf5 {[%emt 0:01:01]} 14. Rb2 {[%emt 0:00:58]} Bg6 {[%emt 0:02:58]} 15. O-O {[%emt 0:00:30]} O-O {[%emt 0:00:38]} 16. Kh1 {[%emt 0:01:56]} Nc6 {[%emt 0:02:49]} 17. Qg3 {[%emt 0:01:17]} Rb8 {[%emt 0:04:05]} 18. Ng5 {[%emt 0:04:30]} h6 {[%emt 0:04:56]} 19. Nf3 {[%emt 0:00:56]} Rc8 {[%emt 0:04:49]} 20. h4 {[%emt 0:01:15]} Qd7 {[%emt 0:01:43]} 21. h5 {[%emt 0:01:47]} Bxh5 {[%emt 0:00:58]} 22. Bxh6 {[%emt 0:00:09]} Bg6 {[%emt 0:00:11]} 23. Bd2 {[%emt 0:00:19]} Nd8 {[%emt 0:03:17]} 24. Ra2 {[%emt 0:01:10]} Ne6 {[%emt 0:00:52]} 25. Kh2 {[%emt 0:01:02]} Rfd8 {[%emt 0:03:43]} 26. Rh1 {[%emt 0:00:33]} Nf8 {[%emt 0:05:38]} 27. Kg1 {[%emt 0:00:47]} Nh7 {[%emt 0:02:54]} 28. Nh4 {[%emt 0:01:10]} Bxh4 {[%emt 0:03:49]} 29. Qxh4 {[%emt 0:00:14]} Qf5 {[%emt 0:00:55]} 30. Bg4 {[%emt 0:00:56]} Qe4 {[%emt 0:00:47]} 31. Bxc8 {[%emt 0:00:29]} Qxh4 {[%emt 0:00:13]} 32. Rxh4 {[%emt 0:00:09]} Rxc8 {[%emt 0:00:07]} 33. Kf2 {[%emt 0:00:25]} Kf8 {[%emt 0:00:54]} 34. Bc1 {[%emt 0:00:51]} Ke7 {[%emt 0:01:03]} 35. Ba3+ {[%emt 0:00:08]} Ke6 {[%emt 0:00:18]} 36. Bd6 {[%emt 0:00:08]} Kf5 {[%emt 0:00:44]} 37. g3 {[%emt 0:00:10]} Ng5 {[%emt 0:01:03]} 38. g4+ {[%emt 0:03:39]} Kf4 {[%emt 0:01:08]} 39. e6+ {[%emt 0:00:58]} Ke4 {[%emt 0:00:21]} 40. e7 {[%emt 0:00:59]} f5 {[%emt 0:01:57]} 41. gxf5+ {[%emt 0:30:40]} Kxf5 {[%emt 0:30:28]} 42. Rf4+ {[%emt 0:00:11]} Ke6 {[%emt 0:00:52]} 43. Rf8 {[%emt 0:01:18]} Re8 {[%emt 0:01:10]} 44. Bb4 {[%emt 0:00:33]} a5 {[%emt 0:00:51]} 45. Ba3 {[%emt 0:00:18]} Ne4+ {[%emt 0:00:43]} 46. Kf3 {[%emt 0:02:07]} Nxc3 {[%emt 0:01:15]} 47. Ra1 {[%emt 0:01:36]} Nxa4 {[%emt 0:01:44]} 48. Re1+ {[%emt 0:00:53]} Kd7 {[%emt 0:00:17]} 49. Rg1 {[%emt 0:02:20]} Bh5+ {[%emt 0:03:25]} 50. Ke3 {[%emt 0:00:37]} b5 {[%emt 0:00:47]} 51. Rxg7 {[%emt 0:02:46]} b4 {[%emt 0:00:43]} 52. Bc1 {[%emt 0:06:29]} Nb6 {[%emt 0:06:49]} 53. Bb2 {[%emt 0:01:34]} Rxe7+ {[%emt 0:01:11]} 54. Rxe7+ {[%emt 0:00:32]} Kxe7 {[%emt 0:00:13]} 55. Rf1 {[%emt 0:00:57]} Na4 {[%emt 0:01:03]} 56. Ba1 {[%emt 0:00:35]} Bg6 {[%emt 0:01:21]} 57. Kd2 {[%emt 0:02:18]} c3+ {[%emt 0:04:10]} 58. Kc1 {[%emt 0:02:10]} Be4 {[%emt 0:00:58]} 59. Rg1 {[%emt 0:01:00]} Kd6 {[%emt 0:00:32]} 60. Rg7 {[%emt 0:00:35]} Kc6 {[%emt 0:00:15]} 61. Ra7 {[%emt 0:00:32]} Kb6 {[%emt 0:01:00]} 62. Re7 {[%emt 0:00:35]} Kb5 {[%emt 0:01:39]} 63. Rf7 {[%emt 0:00:43]} Kc4 {[%emt 0:01:07]} 64. Ra7 {[%emt 0:00:08]} Kb5 {[%emt 0:01:39]} 65. Kb1 {[%emt 0:01:12]} Kb6 {[%emt 0:00:27]} 66. Rf7 {[%emt 0:00:19]} Kb5 {[%emt 0:00:29]} 67. Rc7 {[%emt 0:00:24]} Kb6 {[%emt 0:00:25]} 68. Rc8 {[%emt 0:00:26]} Ka6 {[%emt 0:00:50]} 69. Rb8 {[%emt 0:02:32]} Ka7 {[%emt 0:00:06]} 70. Kc1 {[%emt 0:02:19]} Ka6 {[%emt 0:00:00]} 71. Kd1 {[%emt 0:10:26]} Ka7 {[%emt 0:00:00]} 72. Rb5 {[%emt 0:00:00]} Ka6 {[%emt 0:00:00]} 73. Rb8 {[%emt 0:00:28]} Ka7 {[%emt 0:00:00]} 74. Rf8 {[%emt 0:00:21]} Kb6 {[%emt 0:00:00]} 75. Rc8 {[%emt 0:00:23]} Kb5 {[%emt 0:00:00]} 76. Rc7 {[%emt 0:01:36]} Kb6 {[%emt 0:00:00]} 1/2-1/2

[Event "CZE-ch Youth G10-G12-G14 2022"]
[Site "Luhacovice"]
[Date "2022.03.16"]
[Round "6.17"]
[White "Markina, Sofiia"]
[Black "Sochorova Valentyna"]
[Result "1-0"]
[ECO "B01"]
[WhiteElo "1367"]
[BlackElo "1201"]
[Annotator "NA"]
[PlyCount "77"]
[EventDate "2022.03.12"]
[EventType "swiss"]
[EventCountry "CZE"]
[SourceTitle "playchess.com"]
[Source "ChessBase"]
[SourceQuality "1"]
[TimeControl "40/5400+30:1800+30"]

1. e4 {[%emt 0:00:05]} d5 {[%emt 0:00:00]} 2. exd5 {[%emt 0:00:00]} Nf6 {[%emt 0:00:07]} 3. Nf3 {[%emt 0:00:00]} Nxd5 {[%emt 0:19:53]} 4. d4 {[%emt 0:00:18]} Bg4 {[%emt 0:00:30]} 5. c4 {[%emt 0:00:30]} Nb6 {[%emt 0:00:30]} 6. c5 {[%emt 0:00:30]} Nd5 {[%emt 0:00:30]} 7. Qb3 {[%emt 0:00:30]} b6 {[%emt 0:00:30]} 8. Ne5 {[%emt 0:07:19]} Be6 {[%emt 0:21:45]} 9. Bb5+ {[%emt 0:02:43]} c6 {[%emt 0:06:18]} 10. Nxc6 {[%emt 0:00:12]} Qc7 {[%emt 0:02:27]} 11. Nxb8+ {[%emt 0:00:17]} Kd8 {[%emt 0:01:44]} 12. Nc6+ {[%emt 0:01:27]} Kc8 {[%emt 0:11:41]} 13. Ba6+ {[%emt 0:00:27]} Kd7 {[%emt 0:00:45]} 14. Qb5 {[%emt 0:07:23]} Ke8 {[%emt 0:06:42]} 15. Ne5+ {[%emt 0:05:33]} Bd7 {[%emt 0:02:10]} 16. Nxd7 {[%emt 0:00:18]} Qxd7 {[%emt 0:06:23]} 17. Qxd7+ {[%emt 0:00:22]} Kxd7 {[%emt 0:00:30]} 18. Bb7 {[%emt 0:00:30]} Rd8 {[%emt 0:00:30]} 19. Bxd5 {[%emt 0:00:30]} Kc8 {[%emt 0:00:30]} 20. Nc3 {[%emt 0:00:30]} e6 {[%emt 0:00:30]} 21. Bg5 {[%emt 0:00:30]} Re8 {[%emt 0:00:30]} 22. Bc6 {[%emt 0:00:18]} f6 {[%emt 0:03:19]} 23. Bxe8 {[%emt 0:00:38]} fxg5 {[%emt 0:00:31]} 24. c6 {[%emt 0:00:16]} Bb4 {[%emt 0:01:09]} 25. Bd7+ {[%emt 0:00:07]} Kc7 {[%emt 0:00:14]} 26. a3 {[%emt 0:00:10]} Bxc3+ {[%emt 0:00:46]} 27. bxc3 {[%emt 0:00:05]} b5 {[%emt 0:01:16]} 28. a4 {[%emt 0:00:10]} Rb8 {[%emt 0:02:06]} 29. axb5 {[%emt 0:00:06]} Rxb5 {[%emt 0:00:46]} 30. Rxa7+ {[%emt 0:00:05]} Kd6 {[%emt 0:00:46]} 31. Kd2 {[%emt 0:00:33]} Rf5 {[%emt 0:01:26]} 32. f3 {[%emt 0:00:33]} Rf8 {[%emt 0:00:53]} 33. Re1 {[%emt 0:00:11]} Rf6 {[%emt 0:00:51]} 34. c4 {[%emt 0:00:08]} Ke7 {[%emt 0:01:59]} 35. Bxe6+ {[%emt 0:00:17]} Kd6 {[%emt 0:00:30]} 36. Bd7 {[%emt 0:00:14]} Rf7 {[%emt 0:00:49]} 37. c5+ {[%emt 0:00:08]} Kd5 {[%emt 0:00:37]} 38. Kd3 {[%emt 0:00:06]} g6 {[%emt 0:01:01]} 39. Re5# {[%emt 0:00:09]} 1-0

[Event "CZE-ch Youth G10-G12-G14 2022"]
[Site "Luhacovice"]
[Date "2022.03.16"]
[Round "6.18"]
[White "Stavova, Lucie"]
[Black "Barteckova, Valerie"]
[Result "1/2-1/2"]
[ECO "B19"]
[WhiteElo "1048"]
[BlackElo "1250"]
[Annotator "NA"]
[PlyCount "60"]
[EventDate "2022.03.12"]
[EventType "swiss"]
[EventCountry "CZE"]
[SourceTitle "playchess.com"]
[Source "ChessBase"]
[SourceQuality "1"]
[TimeControl "40/5400+30:1800+30"]

1. e4 {[%emt 0:00:03]} c6 {[%emt 0:00:10]} 2. d4 {[%emt 0:00:17]} d5 {[%emt 0:00:09]} 3. Nc3 {[%emt 0:00:32]} dxe4 {[%emt 0:00:29]} 4. Nxe4 {[%emt 0:00:19]} Bf5 {[%emt 0:00:22]} 5. Ng3 {[%emt 0:01:19]} Bg6 {[%emt 0:00:18]} 6. h4 {[%emt 0:00:43]} h6 {[%emt 0:00:26]} 7. h5 {[%emt 0:01:28]} Bh7 {[%emt 0:00:29]} 8. Nf3 {[%emt 0:00:57]} Nd7 {[%emt 0:00:45]} 9. Bd3 {[%emt 0:01:03]} Bxd3 {[%emt 0:00:53]} 10. Qxd3 {[%emt 0:01:01]} Qc7 {[%emt 0:02:46]} 11. Bd2 {[%emt 0:01:44]} Ngf6 {[%emt 0:00:25]} 12. O-O-O {[%emt 0:01:44]} e6 {[%emt 0:00:43]} 13. Qe2 {[%emt 0:02:50]} O-O-O {[%emt 0:00:57]} 14. Ne5 {[%emt 0:01:53]} Nxe5 {[%emt 0:01:01]} 15. dxe5 {[%emt 0:01:06]} Nd5 {[%emt 0:00:38]} 16. f4 {[%emt 0:01:34]} Qb6 {[%emt 0:07:57]} 17. Ne4 {[%emt 0:03:13]} Qc7 {[%emt 0:03:57]} 18. c3 {[%emt 0:08:55]} Be7 {[%emt 0:02:34]} 19. a3 {[%emt 0:07:08]} Kb8 {[%emt 0:02:53]} 20. c4 {[%emt 0:03:01]} Nb6 {[%emt 0:02:31]} 21. Ba5 {[%emt 0:04:50]} Rxd1+ {[%emt 0:02:14]} 22. Rxd1 {[%emt 0:00:23]} Qc8 {[%emt 0:00:49]} 23. Kb1 {[%emt 0:02:17]} Nd7 {[%emt 0:02:36]} 24. g4 {[%emt 0:03:52]} Nc5 {[%emt 0:03:32]} 25. Bc3 {[%emt 0:06:05]} Nxe4 {[%emt 0:02:29]} 26. Qxe4 {[%emt 0:00:23]} Qc7 {[%emt 0:04:57]} 27. Ka2 {[%emt 0:05:45]} Ka8 {[%emt 0:02:01]} 28. b3 {[%emt 0:01:42]} Qc8 {[%emt 0:07:02]} 29. b4 {[%emt 0:03:35]} Qc7 {[%emt 0:00:44]} 30. Rc1 {[%emt 0:01:30]} Qd7 {[%emt 0:02:31]} 1/2-1/2

[Event "CZE-ch Youth G10-G12-G14 2022"]
[Site "Luhacovice"]
[Date "2022.03.16"]
[Round "6.19"]
[White "Lukaskova Ellen"]
[Black "Kubatova Ema"]
[Result "1-0"]
[ECO "B22"]
[WhiteElo "1058"]
[BlackElo "1183"]
[Annotator "NA"]
[PlyCount "101"]
[EventDate "2022.03.12"]
[EventType "swiss"]
[EventCountry "CZE"]
[SourceTitle "playchess.com"]
[Source "ChessBase"]
[SourceQuality "1"]
[TimeControl "40/5400+30:1800+30"]

1. e4 {[%emt 0:00:03]} c5 {[%emt 0:00:17]} 2. c3 {[%emt 0:00:31]} d5 {[%emt 0:00:15]} 3. exd5 {[%emt 0:02:00]} Qxd5 {[%emt 0:00:17]} 4. Qf3 {[%emt 0:01:44]} Qxf3 {[%emt 0:07:08]} 5. Nxf3 {[%emt 0:00:26]} a6 {[%emt 0:02:21]} 6. d4 {[%emt 0:02:03]} cxd4 {[%emt 0:04:28]} 7. cxd4 {[%emt 0:01:14]} e6 {[%emt 0:00:23]} 8. Nc3 {[%emt 0:03:10]} Nf6 {[%emt 0:04:12]} 9. g3 {[%emt 0:03:10]} Be7 {[%emt 0:08:43]} 10. Bg2 {[%emt 0:05:23]} Nc6 {[%emt 0:02:16]} 11. O-O {[%emt 0:04:52]} O-O {[%emt 0:02:23]} 12. Bg5 {[%emt 0:05:17]} h6 {[%emt 0:04:08]} 13. Bxf6 {[%emt 0:05:20]} Bxf6 {[%emt 0:00:14]} 14. Rad1 {[%emt 0:02:34]} Rd8 {[%emt 0:01:44]} 15. d5 {[%emt 0:03:03]} exd5 {[%emt 0:03:57]} 16. Nxd5 {[%emt 0:01:56]} Be6 {[%emt 0:07:00]} 17. Nxf6+ {[%emt 0:01:38]} gxf6 {[%emt 0:00:13]} 18. Rxd8+ {[%emt 0:00:35]} Rxd8 {[%emt 0:00:09]} 19. a3 {[%emt 0:01:35]} Kg7 {[%emt 0:07:46]} 20. Rc1 {[%emt 0:06:22]} a5 {[%emt 0:05:25]} 21. Nh4 {[%emt 0:02:34]} Rc8 {[%emt 0:03:26]} 22. Rd1 {[%emt 0:04:07]} Rd8 {[%emt 0:01:33]} 23. Rxd8 {[%emt 0:04:46]} Nxd8 {[%emt 0:00:09]} 24. Kf1 {[%emt 0:00:50]} Kf8 {[%emt 0:01:42]} 25. Ke2 {[%emt 0:01:02]} Ke7 {[%emt 0:00:31]} 26. Ke3 {[%emt 0:01:36]} b6 {[%emt 0:00:31]} 27. b4 {[%emt 0:00:39]} axb4 {[%emt 0:00:24]} 28. axb4 {[%emt 0:00:18]} Bd7 {[%emt 0:02:18]} 29. Be4 {[%emt 0:01:59]} Kf8 {[%emt 0:03:23]} 30. Nf5 {[%emt 0:01:33]} h5 {[%emt 0:02:04]} 31. Nd4 {[%emt 0:03:13]} Ne6 {[%emt 0:02:21]} 32. Nxe6+ {[%emt 0:01:25]} fxe6 {[%emt 0:00:17]} 33. Bg6 {[%emt 0:01:44]} Be8 {[%emt 0:01:06]} 34. Bxe8 {[%emt 0:01:14]} Kxe8 {[%emt 0:00:05]} 35. Ke4 {[%emt 0:01:21]} Ke7 {[%emt 0:00:24]} 36. f3 {[%emt 0:02:18]} Kf7 {[%emt 0:02:33]} 37. h4 {[%emt 0:01:14]} Ke7 {[%emt 0:01:23]} 38. g4 {[%emt 0:01:11]} hxg4 {[%emt 0:00:29]} 39. fxg4 {[%emt 0:00:16]} Kf7 {[%emt 0:00:10]} 40. g5 {[%emt 0:02:17]} f5+ {[%emt 0:00:57]} 41. Ke5 {[%emt 0:31:35]} Kg6 {[%emt 0:31:17]} 42. b5 {[%emt 0:03:26]} Kf7 {[%emt 0:01:10]} 43. h5 {[%emt 0:01:51]} Kg7 {[%emt 0:01:05]} 44. g6 {[%emt 0:02:21]} Kf8 {[%emt 0:01:09]} 45. h6 {[%emt 0:01:37]} Kg8 {[%emt 0:01:08]} 46. Kf6 {[%emt 0:01:39]} f4 {[%emt 0:00:11]} 47. h7+ {[%emt 0:00:19]} Kh8 {[%emt 0:00:13]} 48. Kf7 {[%emt 0:00:51]} f3 {[%emt 0:00:29]} 49. g7+ {[%emt 0:00:12]} Kxh7 {[%emt 0:00:10]} 50. g8=Q+ {[%emt 0:00:29]} Kh6 {[%emt 0:00:11]} 51. Qg6# {[%emt 0:00:29]} 1-0

[Event "CZE-ch Youth G10-G12-G14 2022"]
[Site "Luhacovice"]
[Date "2022.03.16"]
[Round "6.20"]
[White "Stehlikova, Vanessa"]
[Black "Krisicova Neli"]
[Result "1-0"]
[ECO "C45"]
[WhiteElo "1039"]
[BlackElo "1093"]
[Annotator "NA"]
[PlyCount "106"]
[EventDate "2022.03.12"]
[EventType "swiss"]
[EventCountry "CZE"]
[SourceTitle "playchess.com"]
[Source "ChessBase"]
[SourceQuality "1"]
[TimeControl "40/5400+30:1800+30"]

1. e4 {[%emt 0:00:03]} e5 {[%emt 0:00:07]} 2. Nf3 {[%emt 0:00:05]} Nc6 {[%emt 0:00:10]} 3. d4 {[%emt 0:00:05]} exd4 {[%emt 0:00:16]} 4. Nxd4 {[%emt 0:00:08]} Bc5 {[%emt 0:00:33]} 5. Be3 {[%emt 0:00:13]} Qf6 {[%emt 0:00:41]} 6. c3 {[%emt 0:00:22]} Nge7 {[%emt 0:00:39]} 7. Qf3 {[%emt 0:00:09]} Qg6 {[%emt 0:08:59]} 8. Nd2 {[%emt 0:09:31]} Ne5 {[%emt 0:03:29]} 9. Qf4 {[%emt 0:14:54]} Bd6 {[%emt 0:01:57]} 10. Qg5 {[%emt 0:00:52]} f6 {[%emt 0:03:23]} 11. Qxg6+ {[%emt 0:00:07]} N7xg6 {[%emt 0:00:22]} 12. O-O-O {[%emt 0:00:15]} Bc5 {[%emt 0:01:34]} 13. h3 {[%emt 0:04:16]} d6 {[%emt 0:02:10]} 14. Bb5+ {[%emt 0:04:29]} Bd7 {[%emt 0:00:40]} 15. Bxd7+ {[%emt 0:01:22]} Nxd7 {[%emt 0:00:14]} 16. N2b3 {[%emt 0:02:10]} Bb6 {[%emt 0:01:16]} 17. f3 {[%emt 0:07:21]} Nge5 {[%emt 0:01:50]} 18. Kb1 {[%emt 0:05:20]} a5 {[%emt 0:04:10]} 19. Nc1 {[%emt 0:14:17]} O-O {[%emt 0:03:57]} 20. Bf2 {[%emt 0:06:22]} a4 {[%emt 0:04:29]} 21. a3 {[%emt 0:05:19]} Nc4 {[%emt 0:03:07]} 22. Nd3 {[%emt 0:02:13]} Nc5 {[%emt 0:03:30]} 23. Nxc5 {[%emt 0:01:41]} Bxc5 {[%emt 0:01:39]} 24. Rhf1 {[%emt 0:07:19]} Rfe8 {[%emt 0:02:41]} 25. Nb5 {[%emt 0:01:49]} Rac8 {[%emt 0:01:47]} 26. Nd4 {[%emt 0:04:16]} c6 {[%emt 0:02:27]} 27. Nc2 {[%emt 0:02:26]} Bxf2 {[%emt 0:01:16]} 28. Rxf2 {[%emt 0:00:08]} Rcd8 {[%emt 0:01:34]} 29. Ka2 {[%emt 0:01:34]} d5 {[%emt 0:02:19]} 30. exd5 {[%emt 0:00:11]} cxd5 {[%emt 0:00:28]} 31. b3 {[%emt 0:00:48]} axb3+ {[%emt 0:00:20]} 32. Kxb3 {[%emt 0:00:02]} Kf7 {[%emt 0:00:51]} 33. Nb4 {[%emt 0:00:50]} Ke6 {[%emt 0:02:13]} 34. Re2+ {[%emt 0:00:35]} Ne5 {[%emt 0:01:05]} 35. f4 {[%emt 0:00:12]} Kd6 {[%emt 0:01:14]} 36. fxe5+ {[%emt 0:00:25]} fxe5 {[%emt 0:00:58]} 37. Rxd5+ {[%emt 0:00:06]} Ke6 {[%emt 0:00:39]} 38. Rdxe5+ {[%emt 0:00:12]} Kf7 {[%emt 0:00:00]} 39. Rf2+ {[%emt 0:00:47]} Kg6 {[%emt 0:00:14]} 40. Rxe8 {[%emt 0:00:13]} Rxe8 {[%emt 0:00:11]} 41. g4 {[%emt 0:30:14]} Re3 {[%emt 0:30:20]} 42. h4 {[%emt 0:00:12]} Re4 {[%emt 0:00:14]} 43. h5+ {[%emt 0:00:15]} Kh6 {[%emt 0:00:19]} 44. Rf7 {[%emt 0:00:35]} b5 {[%emt 0:00:21]} 45. Rf5 {[%emt 0:00:39]} Rxg4 {[%emt 0:00:23]} 46. Rxb5 {[%emt 0:00:15]} g6 {[%emt 0:00:08]} 47. hxg6 {[%emt 0:00:15]} hxg6 {[%emt 0:00:08]} 48. Nd5 {[%emt 0:00:09]} Rg5 {[%emt 0:00:25]} 49. a4 {[%emt 0:00:11]} Rg1 {[%emt 0:00:24]} 50. Nf4 {[%emt 0:00:15]} g5 {[%emt 0:00:22]} 51. Ne2 {[%emt 0:00:20]} Ra1 {[%emt 0:00:18]} 52. c4 {[%emt 0:00:32]} g4 {[%emt 0:00:13]} 53. c5 {[%emt 0:00:20]} Rd1 {[%emt 0:00:21]} 1-0

[Event "CZE-ch Youth G10-G12-G14 2022"]
[Site "Luhacovice"]
[Date "2022.03.16"]
[Round "6.21"]
[White "Vaclavkova Klara"]
[Black "Pruskova, Justyna"]
[Result "1-0"]
[ECO "D06"]
[WhiteElo "1000"]
[BlackElo "1003"]
[Annotator "NA"]
[PlyCount "104"]
[EventDate "2022.03.12"]
[EventType "swiss"]
[EventCountry "CZE"]
[SourceTitle "playchess.com"]
[Source "ChessBase"]
[SourceQuality "1"]
[TimeControl "40/5400+30:1800+30"]

1. d4 {[%emt 0:00:03]} d5 {[%emt 0:00:30]} 2. c4 {[%emt 0:00:31]} Nf6 {[%emt 0:00:04]} 3. Nf3 {[%emt 0:00:21]} Nc6 {[%emt 0:00:16]} 4. Bf4 {[%emt 0:00:58]} Bf5 {[%emt 0:00:24]} 5. Nc3 {[%emt 0:01:30]} e6 {[%emt 0:00:20]} 6. e3 {[%emt 0:00:38]} Bb4 {[%emt 0:00:23]} 7. Be2 {[%emt 0:00:48]} O-O {[%emt 0:00:10]} 8. O-O {[%emt 0:00:49]} Bxc3 {[%emt 0:00:46]} 9. bxc3 {[%emt 0:04:21]} Ne4 {[%emt 0:00:13]} 10. Rc1 {[%emt 0:02:44]} Na5 {[%emt 0:01:30]} 11. c5 {[%emt 0:08:02]} Bg4 {[%emt 0:05:39]} 12. Bd3 {[%emt 0:02:19]} Nc4 {[%emt 0:02:15]} 13. h3 {[%emt 0:02:15]} Nb2 {[%emt 0:03:06]} 14. Qe2 {[%emt 0:03:44]} Nxd3 {[%emt 0:00:59]} 15. Qxd3 {[%emt 0:00:58]} Bxf3 {[%emt 0:00:49]} 16. gxf3 {[%emt 0:01:02]} Nf6 {[%emt 0:00:13]} 17. Kh2 {[%emt 0:02:59]} Nh5 {[%emt 0:00:23]} 18. Be5 {[%emt 0:04:04]} f6 {[%emt 0:01:08]} 19. Bg3 {[%emt 0:01:18]} f5 {[%emt 0:04:04]} 20. f4 {[%emt 0:02:52]} Nxg3 {[%emt 0:00:23]} 21. fxg3 {[%emt 0:02:48]} Rf6 {[%emt 0:00:17]} 22. Rg1 {[%emt 0:02:02]} Rh6 {[%emt 0:00:12]} 23. Rg2 {[%emt 0:01:16]} Qe7 {[%emt 0:04:53]} 24. Rcg1 {[%emt 0:01:24]} Rf8 {[%emt 0:01:41]} 25. g4 {[%emt 0:00:54]} Qh4 {[%emt 0:01:18]} 26. Rg3 {[%emt 0:00:49]} fxg4 {[%emt 0:00:10]} 27. Qf1 {[%emt 0:01:16]} Rff6 {[%emt 0:03:12]} 28. Rxg4 {[%emt 0:01:38]} Qh5 {[%emt 0:00:37]} 29. Rxg7+ {[%emt 0:02:21]} Kf8 {[%emt 0:00:35]} 30. R7g5 {[%emt 0:00:12]} Qf7 {[%emt 0:01:26]} 31. Rg7 {[%emt 0:04:29]} Qh5 {[%emt 0:03:10]} 32. Rg8+ {[%emt 0:00:54]} Ke7 {[%emt 0:00:57]} 33. R1g7+ {[%emt 0:00:28]} Rf7 {[%emt 0:02:12]} 34. Rg4 {[%emt 0:00:25]} Qf5 {[%emt 0:01:29]} 35. Qb5 {[%emt 0:02:05]} Qc2+ {[%emt 0:01:44]} 36. Rg2 {[%emt 0:01:27]} Qxc3 {[%emt 0:01:14]} 37. Qe8+ {[%emt 0:01:20]} Kf6 {[%emt 0:00:32]} 38. Rf8 {[%emt 0:00:30]} Kf5 {[%emt 0:01:02]} 39. Qxf7+ {[%emt 0:01:59]} Ke4 {[%emt 0:01:01]} 40. f5 {[%emt 0:00:35]} Qxe3 {[%emt 0:02:04]} 41. Rg3 {[%emt 0:30:19]} Qf2+ {[%emt 0:31:06]} 42. Rg2 {[%emt 0:00:45]} Qe3 {[%emt 0:00:24]} 43. Rg4+ {[%emt 0:01:12]} Kd3 {[%emt 0:00:50]} 44. Rg3 {[%emt 0:11:02]} Qxg3+ {[%emt 0:00:10]} 45. Kxg3 {[%emt 0:00:25]} Kxd4 {[%emt 0:00:02]} 46. Qxc7 {[%emt 0:00:36]} e5 {[%emt 0:00:54]} 47. Qxb7 {[%emt 0:00:14]} e4 {[%emt 0:00:39]} 48. c6 {[%emt 0:00:11]} e3 {[%emt 0:01:32]} 49. Re8 {[%emt 0:00:25]} Kd3 {[%emt 0:00:20]} 50. c7 {[%emt 0:00:10]} e2 {[%emt 0:00:12]} 51. c8=Q {[%emt 0:00:07]} Kd2 {[%emt 0:01:43]} 52. Qxd5+ {[%emt 0:00:30]} Ke1 {[%emt 0:00:30]} 1-0

[Event "CZE-ch Youth G10-G12-G14 2022"]
[Site "Luhacovice"]
[Date "2022.03.16"]
[Round "6.22"]
[White "Kubatova Beta"]
[Black "Bouchalova, Kveta"]
[Result "0-1"]
[ECO "C47"]
[WhiteElo "1071"]
[BlackElo "1303"]
[Annotator "NA"]
[PlyCount "95"]
[EventDate "2022.03.12"]
[EventType "swiss"]
[EventCountry "CZE"]
[SourceTitle "playchess.com"]
[Source "ChessBase"]
[SourceQuality "1"]
[TimeControl "40/5400+30:1800+30"]

1. e4 {[%emt 0:00:07]} e5 {[%emt 0:00:05]} 2. Nf3 {[%emt 0:00:09]} Nc6 {[%emt 0:00:03]} 3. d4 {[%emt 0:00:12]} exd4 {[%emt 0:00:05]} 4. Nxd4 {[%emt 0:00:00]} Nf6 {[%emt 0:00:00]} 5. Nxc6 {[%emt 0:00:00]} Bb4+ {[%emt 0:00:10]} 6. Nc3 {[%emt 0:00:28]} bxc6 {[%emt 0:00:08]} 7. Bd3 {[%emt 0:00:11]} d5 {[%emt 0:00:50]} 8. exd5 {[%emt 0:00:20]} O-O {[%emt 0:01:54]} 9. O-O {[%emt 0:01:59]} Bg4 {[%emt 0:00:45]} 10. Qd2 {[%emt 0:06:02]} cxd5 {[%emt 0:05:02]} 11. a3 {[%emt 0:03:23]} Ba5 {[%emt 0:06:34]} 12. b4 {[%emt 0:02:06]} Bb6 {[%emt 0:00:29]} 13. Bb2 {[%emt 0:01:32]} c6 {[%emt 0:03:12]} 14. Rfe1 {[%emt 0:06:24]} Bc7 {[%emt 0:04:31]} 15. Ne2 {[%emt 0:18:24]} Nh5 {[%emt 0:10:33]} 16. Ng3 {[%emt 0:14:38]} Nxg3 {[%emt 0:29:28]} 17. hxg3 {[%emt 0:00:32]} f6 {[%emt 0:03:11]} 18. Rac1 {[%emt 0:10:15]} Qd6 {[%emt 0:07:46]} 19. c4 {[%emt 0:06:01]} Be6 {[%emt 0:01:18]} 20. c5 {[%emt 0:03:46]} Qd7 {[%emt 0:02:10]} 21. Qc2 {[%emt 0:00:27]} h6 {[%emt 0:04:00]} 22. Rcd1 {[%emt 0:06:56]} a6 {[%emt 0:02:04]} 23. Bd4 {[%emt 0:04:29]} Bg4 {[%emt 0:03:15]} 24. Be2 {[%emt 0:02:04]} Bxe2 {[%emt 0:00:11]} 25. Rxe2 {[%emt 0:00:06]} Rfb8 {[%emt 0:01:08]} 26. Rb1 {[%emt 0:00:39]} a5 {[%emt 0:02:22]} 27. Qd3 {[%emt 0:02:58]} Rb7 {[%emt 0:02:51]} 28. Reb2 {[%emt 0:00:18]} axb4 {[%emt 0:01:27]} 29. axb4 {[%emt 0:00:18]} Rab8 {[%emt 0:00:34]} 30. Qd2 {[%emt 0:00:42]} Be5 {[%emt 0:01:34]} 31. Bc3 {[%emt 0:01:53]} d4 {[%emt 0:01:06]} 32. Bxd4 {[%emt 0:01:53]} Bxd4 {[%emt 0:00:35]} 33. Rb3 {[%emt 0:01:02]} Be5 {[%emt 0:01:38]} 34. Qe2 {[%emt 0:00:35]} Qd4 {[%emt 0:01:15]} 35. Qe1 {[%emt 0:00:55]} Qc4 {[%emt 0:00:33]} 36. Qd2 {[%emt 0:01:13]} Kf7 {[%emt 0:00:36]} 37. Kh2 {[%emt 0:01:09]} Qh4+ {[%emt 0:00:54]} 38. Kg1 {[%emt 0:00:08]} Qg4 {[%emt 0:00:24]} 39. Qe1 {[%emt 0:00:51]} Bd4 {[%emt 0:00:47]} 40. Qc1 {[%emt 0:01:37]} Qe2 {[%emt 0:01:10]} 41. Qf1 {[%emt 0:30:50]} Qxf1+ {[%emt 0:30:13]} 42. Kxf1 {[%emt 0:00:06]} Bxc5 {[%emt 0:00:19]} 43. Rc3 {[%emt 0:01:23]} Bxb4 {[%emt 0:00:24]} 44. Rxc6 {[%emt 0:00:16]} Be7 {[%emt 0:00:25]} 45. Rcc1 {[%emt 0:01:12]} Kg6 {[%emt 0:00:00]} 46. f4 {[%emt 0:01:12]} Bd6 {[%emt 0:00:09]} 47. g4 {[%emt 0:00:40]} h5 {[%emt 0:00:24]} 48. g3 {[%emt 0:00:59]} 0-1